bitfinex/quotes_ETHUSD_20240718
["timestamp","ask_amount","ask_price","bid_price","bid_amount"]
[1721306768630,2.01000978,3473.5,3472.1,0.04923115]
[1721306768940,4.831,3473.5,3472.2,2.4401]
[1721306769142,2.87884,3473.7,3472.2,2.4401]
[1721306769320,2.87894,3473.5,3472.3,0.04917323]
[1721306769515,2.93703978,3473.4,3472.3,0.04917323]
[1721306769721,4.88903978,3473.4,3472.3,0.04917323]
[1721306770238,2.87911,3473.3,3472.3,0.04917323]
[1721306770639,2.93719978,3473.2,3472.3,0.04917323]
[1721306770952,2.87959,3472.8,3472.3,0.04917323]
[1721306771133,0.05800978,3472.7,3472.3,0.04917323]
[1721306771337,0.05800978,3472.7,3471.7,2.4957]
[1721306771338,2.87985,3472.4,3471.7,2.4957]
[1721306771507,2.93785978,3472.4,3471.7,2.4957]
[1721306771706,2.8801,3472.1,3471.8,0.04945682]
[1721306772013,2.88004,3472.2,3471.7,2.4957]
[1721306772226,2.8801,3472.1,3471.7,2.4957]
[1721306772805,0.575992,3472.2,3471.7,2.4957]
[1721306773014,2.88002,3472.2,3471.7,2.4957]
[1721306773238,2.87979,3472.5,3471.7,2.4957]
[1721306773443,3.55,3472.4,3471.7,2.4957]
[1721306773646,6.42986,3472.4,3471.7,2.4957]
[1721306773846,3.0,3472.4,3471.7,2.4957]
[1721306774144,3.0,3472.5,3471.7,2.4957]
[1721306774309,7.28,3472.9,3471.7,2.4957]
[1721306774310,0.3,3472.4,3471.7,2.4957]
[1721306774511,0.05800978,3472.7,3471.8,0.04945682]
[1721306774760,1.952,3472.6,3471.7,2.4957]
[1721306775245,1.952,3472.6,3471.8,0.0495977]
[1721306775542,4.83168,3472.6,3471.7,2.4957]
[1721306775752,2.87986,3472.4,3471.7,2.4957]
[1721306776054,0.05800978,3472.3,3471.7,2.4957]
[1721306776556,0.05800978,3472.2,3471.7,2.4957]
[1721306776848,2.88012,3472.1,3471.8,0.04956348]
[1721306777013,2.93818978,3472.0,3470.7,3.0]
[1721306777219,2.88027,3471.9,3470.8,0.04985324]
[1721306777419,0.05800978,3471.8,3470.8,0.04985324]
[1721306777646,0.05800978,3471.8,3470.6,2.3876]
[1721306777951,2.88027,3471.9,3470.7,0.04988223]
[1721306778250,2.88036,3471.8,3470.7,0.04988223]
[1721306778446,2.93845978,3471.7,3470.7,0.04988223]
[1721306778660,2.88077,3471.3,3470.7,0.04988223]
[1721306779165,2.88077,3471.3,3470.6,2.3876]
[1721306780344,0.05800978,3471.2,3470.6,2.3876]
[1721306780551,2.93877978,3471.3,3470.6,2.3876]
[1721306780757,2.88094,3471.1,3470.7,0.04988223]
[1721306781056,2.88094,3471.1,3470.8,0.04985324]
[1721306781257,2.88094,3471.1,3470.6,2.3876]
[1721306781461,2.88094,3471.1,3470.7,0.04988223]
[1721306782325,2.88105,3471.0,3470.7,0.04988223]
[1721306782528,0.65971438,3470.9,3470.7,0.04988223]
[1721306782759,0.65971438,3470.9,3470.2,2.4217]
[1721306782955,2.88105,3471.0,3470.8,0.05053571]
[1721306783258,2.88089,3471.2,3470.2,2.4217]
[1721306783558,2.88089,3471.2,3470.3,0.05070281]
[1721306783763,4.952,3471.5,3470.3,0.05070281]
[1721306784059,0.55,3471.4,3470.3,0.05070281]
[1721306784260,2.88093,3471.1,3470.3,0.05070281]
[1721306786466,2.8811,3470.9,3470.3,0.05070281]
[1721306787568,2.88093,3471.1,3470.3,0.05070281]
[1721306787768,3.50846099,3471.3,3470.3,0.05070281]
[1721306787937,2.8808,3471.3,3470.3,0.05070281]
[1721306788269,2.88054,3471.6,3470.4,2.4995]
[1721306788567,3.45671,3471.5,3470.5,0.05064483]
[1721306791337,0.05800978,3471.4,3470.5,0.05064483]
[1721306791542,2.88085,3471.2,3470.5,0.05064483]
[1721306791739,2.88085,3471.2,3470.4,2.4995]
[1721306792070,2.88085,3471.2,3470.5,0.0506126]
[1721306794054,2.88073,3471.4,3470.5,0.0506126]
[1721306794878,2.88081,3471.3,3470.5,0.0506126]
[1721306795373,4.83265,3471.5,3470.5,0.0506126]
[1721306797074,7.76232,3471.9,3470.6,2.346]
[1721306797292,4.83232,3471.9,3470.6,2.346]
[1721306797480,1.952,3471.9,3470.6,2.346]
[1721306797656,7.28,3472.1,3470.8,2.4383]
[1721306797979,2.87997,3472.3,3470.9,2.54638144]
[1721306798763,5.75998,3472.3,3470.9,2.54638144]
[1721306798970,2.88007,3472.2,3470.9,2.48876844]
[1721306799380,2.87991,3472.4,3471.0,0.05761068]
[1721306799559,2.87974,3472.6,3471.1,2.48160669]
[1721306799763,4.10294,3472.6,3471.1,2.53190843]
[1721306799965,4.10294,3472.6,3471.1,2.47430174]
[1721306800163,4.10294,3472.6,3471.2,2.424]
[1721306800410,2.93,3472.8,3471.3,2.93831448]
[1721306800582,2.93,3472.8,3471.6,2.3195]
[1721306800967,2.93,3472.8,3471.8,2.3212]
[1721306801476,2.93,3472.8,3471.9,0.05006795]
[1721306801868,2.93,3472.8,3472.0,2.40069586]
[1721306802066,2.87897,3473.5,3472.2,2.4897]
[1721306802268,3.894937,3473.4,3472.2,2.4897]
[1721306802470,3.894937,3473.4,3472.3,0.04978503]
[1721306803259,2.87911,3473.3,3472.3,0.04978503]
[1721306804495,1.015897,3473.4,3472.3,0.10737601]
[1721306804717,2.87897,3473.5,3472.3,0.10737601]
[1721306807095,2.87902,3473.4,3472.3,0.04978503]
[1721306807265,2.87912,3473.3,3472.3,0.04978503]
[1721306809708,2.87912,3473.3,3472.2,2.4897]
[1721306809903,2.87912,3473.3,3472.4,0.04932328]
[1721306810103,2.87912,3473.3,3472.3,0.04935224]
[1721306810277,2.87912,3473.3,3472.5,0.04929432]
[1721306810481,2.87894,3473.5,3472.6,2.2718]
[1721306810725,2.87894,3473.5,3472.0,2.88017]
[1721306810726,2.87863,3473.9,3472.8,2.3162]
[1721306811229,2.87863,3473.9,3472.9,0.04917851]
[1721306811408,2.87863,3473.9,3472.8,2.3162]
[1721306811608,1.028,3474.0,3473.0,2.4901]
[1721306811981,1.028,3474.0,3473.1,0.04912061]
[1721306812578,3.90653,3474.0,3473.1,0.04912061]
[1721306812778,0.678501,3473.9,3473.1,0.04912061]
[1721306813121,2.87853,3474.0,3473.1,0.04912061]
[1721306815284,2.87864,3473.9,3473.1,0.04912061]
[1721306815625,4.83053,3474.0,3473.0,2.4901]
[1721306815626,2.93672978,3473.8,3473.0,2.4901]
[1721306816108,2.87872,3473.8,3473.1,0.04872233]
[1721306816311,2.93672978,3473.8,3473.1,0.04872233]
[1721306816485,0.77672598,3473.7,3473.1,0.04872233]
[1721306816815,0.83473576,3473.7,3473.1,0.04872233]
[1721306817617,0.05800978,3473.6,3473.1,0.04872233]
[1721306818913,0.77672598,3473.7,3473.1,0.04872233]
[1721306819998,0.83473576,3473.7,3473.1,0.04872233]
[1721306820323,2.38135536,3473.6,3473.1,0.04872233]
[1721306820484,2.87898,3473.5,3473.1,0.04872233]
[1721306820681,2.87898,3473.5,3472.5,2.3644]
[1721306821134,2.87898,3473.5,3472.6,0.04888116]
[1721306821337,2.93705978,3473.4,3472.6,0.04888116]
[1721306821512,0.81393254,3473.3,3472.6,0.04888116]
[1721306821720,8.08119558,3473.6,3472.6,0.04888116]
[1721306822044,2.87904,3473.4,3472.6,0.04888116]
[1721306822342,0.05800978,3473.3,3472.6,0.04888116]
[1721306823006,2.93711978,3473.3,3472.6,0.04888116]
[1721306823208,0.05800978,3473.2,3472.6,0.04888116]
[1721306823650,2.93701978,3473.5,3472.6,0.04888116]
[1721306823951,3.78104882,3473.5,3472.6,0.04888116]
[1721306824573,3.72303904,3473.5,3472.6,0.04888116]
[1721306825084,2.87904,3473.4,3472.6,0.04888116]
[1721306826444,2.93704978,3473.4,3472.6,0.04888116]
[1721306827022,2.87904,3473.4,3472.6,0.04888116]
[1721306827229,0.61044244,3473.3,3472.6,0.04888116]
[1721306828257,2.8794,3473.0,3472.6,0.04888116]
[1721306828472,4.83154,3472.8,3472.6,0.04888116]
[1721306828698,2.87971,3472.6,3472.1,2.424]
[1721306828852,0.05800978,3472.5,3472.1,2.424]
[1721306829044,0.83493576,3472.5,3472.1,2.424]
[1721306829492,0.77692598,3472.5,3472.1,2.424]
[1721306829807,0.05800978,3472.4,3472.1,2.424]
[1721306830976,2.87988,3472.4,3471.2,2.3033]
[1721306831151,3.2455606,3472.4,3471.2,2.3033]
[1721306831348,3.2455606,3472.4,3471.3,0.0493643]
[1721306831580,0.3656806,3472.4,3471.3,0.0493643]
[1721306831881,2.8797,3472.6,3471.4,2.4776]
[1721306832175,0.36887712,3473.8,3471.5,5.40748635]
[1721306832176,2.87931,3473.1,3471.5,5.40748635]
[1721306832342,5.80918,3473.3,3471.8,2.88031]
[1721306832545,3.52645157,3473.6,3472.0,2.88018]
[1721306832546,2.87903,3473.4,3472.0,2.88018]
[1721306832786,2.87924,3473.2,3472.1,2.4776]
[1721306832992,2.87924,3473.2,3472.1,2.52673255]
[1721306834067,2.87903,3473.4,3472.1,2.52673255]
[1721306835145,9.28423157,3473.6,3472.1,2.52673255]
[1721306835444,6.03396599,3473.6,3472.2,2.2881]
[1721306835678,2.87894,3473.5,3472.2,2.2881]
[1721306835849,2.87894,3473.5,3472.4,2.3297]
[1721306836180,2.87894,3473.5,3472.5,0.04915952]
[1721306836376,3.15510599,3473.6,3472.5,0.04915952]
[1721306836580,6.92523159,3473.6,3472.5,0.04915952]
[1721306836883,6.92523159,3473.6,3472.5,0.10674673]
[1721306837086,5.7221256,3473.6,3472.5,0.10674673]
[1721306837589,5.7221256,3473.6,3472.5,0.04915952]
[1721306837773,2.87895,3473.5,3472.5,0.04915952]
[1721306837987,0.86590854,3473.4,3472.5,0.04915952]
[1721306840126,3.74493854,3473.4,3472.5,0.04915952]
[1721306843423,6.62403854,3473.4,3472.5,0.04915952]
[1721306843781,2.8793,3473.1,3472.5,0.04915952]
[1721306843899,0.60800978,3473.3,3472.5,0.04915952]
[1721306843900,5.75936,3472.6,3472.5,0.04915952]
[1721306844223,5.75936,3472.6,3471.4,2.393]
[1721306844224,2.88011,3472.1,3471.4,2.393]
[1721306845134,2.88019,3472.0,3471.5,0.04919461]
[1721306845332,2.93819978,3472.0,3471.5,0.04919461]
[1721306845635,0.58183098,3471.9,3471.4,2.393]
[1721306845796,2.88019,3472.0,3471.4,2.393]
[1721306846301,0.05800978,3471.9,3471.4,2.393]
[1721306846498,2.93832978,3471.9,3471.4,2.393]
[1721306847308,2.88035,3471.8,3471.4,2.393]
[1721306847508,0.05800978,3471.7,3471.4,2.393]
[1721306847720,2.93835978,3471.8,3471.4,2.393]
[1721306847891,2.88035,3471.8,3471.4,2.393]
[1721306848087,2.88019,3472.0,3471.4,2.393]
[1721306848503,2.88004,3472.2,3471.4,2.393]
[1721306848705,0.55,3472.1,3471.4,2.393]
[1721306849228,1.952,3472.4,3471.4,2.393]
[1721306849424,4.83187,3472.4,3471.4,2.393]
[1721306849604,4.83187,3472.4,3471.5,0.04919461]
[1721306849801,2.87995,3472.3,3471.5,0.04919461]
[1721306853629,2.723158,3472.4,3471.5,0.04919461]
[1721306853845,15.04153,3472.8,3471.6,2.377]
[1721306854127,2.87961,3472.7,3471.6,2.42644535]
[1721306854500,3.650724,3472.7,3471.6,2.42644535]
[1721306855337,2.87961,3472.7,3471.7,35.0]
[1721306855521,2.87961,3472.7,3471.6,2.42644535]
[1721306855828,2.87937,3473.0,3471.9,2.4341]
[1721306856151,2.93,3473.3,3472.1,2.4341]
[1721306856353,5.80912,3473.3,3472.1,2.4341]
[1721306856555,5.80912,3473.3,3472.2,0.04947073]
[1721306857332,2.87918,3473.2,3472.2,0.04947073]
[1721306858034,2.87918,3473.2,3472.3,2.4976]
[1721306858224,2.93,3473.3,3472.3,2.54693511]
[1721306858612,5.80912,3473.3,3472.3,2.54693511]
[1721306859433,2.87919,3473.2,3472.3,2.54693511]
[1721306859827,5.8091,3473.3,3472.3,2.54693511]
[1721306864471,2.93,3473.3,3472.4,0.05759084]
[1721306864668,1.952,3473.6,3472.4,2.2845]
[1721306864872,4.8309,3473.6,3472.5,0.10668278]
[1721306865673,2.87874,3473.8,3472.6,2.2845]
[1721306866060,2.87874,3473.8,3472.7,0.04896372]
[1721306866270,2.87874,3473.8,3472.8,2.275]
[1721306866451,2.87874,3473.8,3472.8,2.32393477]
[1721306866890,2.87874,3473.8,3472.8,2.275]
[1721306867277,2.87874,3473.8,3472.9,0.04890381]
[1721306867465,2.87874,3473.8,3472.8,2.275]
[1721306867667,7.76053,3474.0,3472.8,2.275]
[1721306867879,2.87863,3473.9,3472.8,2.275]
[1721306868486,2.87877,3473.7,3472.9,0.04890381]
[1721306868691,2.87894,3473.5,3472.9,0.04890381]
[1721306868867,2.87894,3473.5,3472.8,2.275]
[1721306869467,2.87954,3472.8,3471.9,2.3392]
[1721306870079,1.952,3472.7,3471.9,2.3392]
[1721306870993,5.75879,3473.0,3471.9,2.3392]
[1721306871301,1.952,3473.1,3471.9,2.3392]
[1721306872660,2.87915,3473.3,3471.9,2.3392]
[1721306873080,2.87915,3473.3,3472.0,2.3664]
[1721306873470,4.46326359,3473.3,3472.0,2.3664]
[1721306874794,2.87915,3473.3,3472.1,0.04591855]
[1721306875004,2.87915,3473.3,3472.2,2.4941]
[1721306875296,2.87915,3473.3,3472.2,2.53998958]
[1721306877399,2.87924,3473.2,3472.2,2.53998958]
[1721306882597,6.05914589,3473.4,3472.2,2.53998958]
[1721306882899,4.44948108,3473.4,3472.2,2.53998958]
[1721306883207,5.75749,3473.8,3472.4,2.4399]
[1721306883415,2.87873,3473.8,3472.4,2.4399]
[1721306883569,2.87877,3473.7,3472.6,2.3904]
[1721306883763,2.87877,3473.7,3472.7,0.04581503]
[1721306884223,2.87877,3473.7,3472.8,2.3463]
[1721306884524,2.87877,3473.7,3472.8,2.39202788]
[1721306885939,2.87919,3473.2,3472.8,2.39202788]
[1721306886235,2.87903,3473.4,3472.8,2.39202788]
[1721306886526,2.87903,3473.4,3472.8,2.3463]
[1721306886830,2.87925,3473.2,3472.8,2.3463]
[1721306888136,2.87935,3473.1,3472.9,0.04571699]
[1721306888342,0.57586,3473.0,3472.9,0.04571699]
[1721306888504,0.57586,3473.0,3472.4,2.2895]
[1721306888829,2.87935,3473.1,3472.4,2.2895]
[1721306892208,1.952,3473.5,3472.4,2.2895]
[1721306892209,2.87898,3473.5,3472.4,2.2895]
[1721306892420,3.15510599,3473.7,3472.4,2.2895]
[1721306892421,1.952,3473.7,3472.4,2.2895]
[1721306892599,1.952,3473.7,3472.2,2.87998]
[1721306892600,5.75786,3473.6,3472.5,0.04585286]
[1721306892804,2.8788,3473.7,3472.6,2.456]
[1721306893139,7.28,3473.8,3472.7,2.456]
[1721306893431,7.28,3473.8,3472.8,0.04573991]
[1721306893432,2.8787,3473.8,3472.8,0.04573991]
[1721306893608,0.575735,3473.7,3472.8,0.04573991]
[1721306893809,2.8787,3473.8,3472.8,0.04573991]
[1721306894012,2.8787,3473.8,3472.7,2.456]
[1721306894208,2.8787,3473.8,3472.9,0.04571096]
[1721306894411,2.8787,3473.8,3472.7,2.456]
[1721306894609,2.8787,3473.8,3473.0,0.04568201]
[1721306894930,2.8787,3473.8,3472.7,2.456]
[1721306895442,2.8787,3473.8,3472.8,0.04573991]
[1721306895614,2.87852,3474.0,3472.7,2.456]
[1721306895810,2.87852,3474.0,3472.9,0.04571096]
[1721306896016,3.92047484,3474.0,3472.8,0.04573991]
[1721306896221,3.92047484,3474.0,3473.0,0.04568201]
[1721306896438,3.92047484,3474.0,3472.7,5.3356]
[1721306896640,4.08162599,3474.0,3473.1,0.04565306]
[1721306896814,4.08162599,3474.0,3472.7,2.456]
[1721306897015,4.08162599,3474.0,3473.2,0.04562412]
[1721306897232,2.87861,3473.9,3472.7,2.456]
[1721306897545,2.87861,3473.9,3473.3,0.04559517]
[1721306897743,0.05800978,3473.8,3472.7,2.456]
[1721306898047,2.93672978,3473.8,3472.8,0.04573991]
[1721306898244,0.05800978,3473.7,3472.8,0.04573991]
[1721306898846,2.87872,3473.8,3472.8,0.04573991]
[1721306900042,4.08162599,3474.0,3472.9,2.2547]
[1721306900412,4.08162599,3474.0,3473.0,0.04562381]
[1721306900617,1.20310599,3473.9,3473.0,0.04562381]
[1721306900817,2.87852,3474.0,3473.0,0.04562381]
[1721306901030,4.08162599,3474.0,3473.0,0.04562381]
[1721306902678,1.20310599,3474.0,3473.0,0.04562381]
[1721306902855,1.20310599,3474.1,3473.1,2.2852]
[1721306903026,1.20310599,3474.1,3473.1,2.33079486]
[1721306903228,1.20310599,3474.0,3473.1,2.33079486]
[1721306904468,2.27530318,3474.0,3473.1,2.33079486]
[1721306905434,2.87872,3473.8,3473.1,2.33079486]
[1721306905639,0.05800978,3473.7,3473.1,2.33079486]
[1721306905965,5.15389318,3474.0,3473.1,2.33079486]
[1721306906162,3.95078719,3474.0,3473.1,2.33079486]
[1721306906363,2.87859,3474.0,3473.1,2.33079486]
[1721306907332,1.20310599,3474.1,3473.1,2.33079486]
[1721306907663,1.50408646,3474.2,3473.2,0.05757629]
[1721306907964,1.20310599,3474.3,3473.4,2.3051]
[1721306908165,4.08133599,3474.4,3473.4,2.3051]
[1721306908367,1.20310599,3474.5,3473.6,2.3196]
[1721306908536,0.55899733,3474.4,3473.6,2.3196]
[1721306909474,0.55899733,3474.4,3473.7,0.04525467]
[1721306909677,0.55899733,3474.4,3473.6,2.3196]
[1721306909973,3.43719733,3474.4,3473.8,0.04522573]
[1721306910152,0.05800978,3474.3,3473.7,0.04525467]
[1721306910350,0.34952071,3474.2,3473.6,2.3196]
[1721306910870,0.34952071,3474.2,3473.7,0.04525467]
[1721306911040,0.34952071,3474.2,3473.6,2.3196]
[1721306912862,0.34952071,3474.2,3473.7,0.04525467]
[1721306913062,3.43719733,3474.4,3473.7,0.04525467]
[1721306913776,0.55899733,3474.4,3473.7,0.04525467]
[1721306913976,0.55899733,3474.4,3473.6,2.3196]
[1721306913977,4.83007,3474.6,3473.6,2.3196]
[1721306914177,2.87813,3474.5,3473.8,0.04522573]
[1721306914381,11.36100599,3474.8,3473.8,2.2597]
[1721306914382,7.28,3474.8,3473.8,2.2597]
[1721306914547,2.87766,3475.1,3474.0,2.2597]
[1721306914751,4.45222639,3475.1,3474.0,2.2597]
[1721306914957,2.8777,3475.0,3474.1,35.0]
[1721306915262,4.08059599,3475.3,3474.1,35.04506069]
[1721306915263,2.87749,3475.3,3474.1,35.04506069]
[1721306916274,2.87749,3475.3,3474.2,2.4887]
[1721306916459,2.87762,3475.1,3474.2,2.53356323]
[1721306917076,0.05800978,3475.0,3474.2,2.53356323]
[1721306917305,2.87808,3474.6,3473.2,2.3713]
[1721306917777,0.05800978,3474.5,3473.4,2.3713]
[1721306918013,2.93612978,3474.5,3473.4,2.3713]
[1721306918164,2.87821,3474.4,3473.5,0.04506577]
[1721306918482,0.58143398,3474.3,3473.5,0.04506577]
[1721306918697,2.87838,3474.2,3473.5,0.04506577]
[1721306918982,2.87838,3474.2,3473.4,2.3713]
[1721306919152,2.87845,3474.1,3473.4,2.3713]
[1721306919355,0.05800978,3474.0,3473.5,0.04502364]
[1721306919549,2.87845,3474.1,3473.5,0.04502364]
[1721306920262,3.65511698,3474.1,3473.5,0.04502364]
[1721306921228,7.7097,3473.6,3473.5,0.04502364]
[1721306921491,2.87908,3473.4,3472.6,2.2805]
[1721306923779,4.83085,3473.6,3472.6,2.2805]
[1721306923990,2.87895,3473.5,3472.6,2.2805]
[1721306925368,2.87903,3473.4,3472.6,2.2805]
[1721306927209,1.04193996,3473.6,3472.6,2.2805]
[1721306927418,3.92079996,3473.6,3472.6,2.2805]
[1721306927911,3.92079996,3473.6,3472.7,0.04411198]
[1721306928393,0.83036951,3473.5,3472.7,0.04411198]
[1721306929775,3.17978913,3473.8,3472.8,2.2912]
[1721306929776,0.30101913,3473.8,3472.8,2.2912]
[1721306929999,2.87862,3473.9,3472.9,0.04400601]
[1721306930172,2.87862,3473.9,3472.8,2.2912]
[1721306930801,1.952,3474.0,3472.8,2.2912]
[1721306930979,2.87846,3474.1,3472.8,2.2912]
[1721306931189,2.87846,3474.1,3472.9,0.04400201]
[1721306931383,2.87846,3474.1,3473.0,2.2914]
[1721306931584,2.87828,3474.3,3473.1,0.04390207]
[1721306931782,2.87836,3474.2,3473.1,0.04390207]
[1721306932213,2.87848,3474.1,3473.1,0.04390207]
[1721306932413,2.87848,3474.1,3473.0,2.2914]
[1721306932613,2.87848,3474.1,3473.1,0.04389409]
[1721306932907,2.87836,3474.2,3473.0,2.2914]
[1721306933404,2.87836,3474.2,3473.1,0.04389609]
[1721306933633,4.83021,3474.4,3473.2,2.2534]
[1721306933814,4.83021,3474.4,3473.2,2.29726114]
[1721306933979,2.87821,3474.4,3473.2,2.29726114]
[1721306934315,2.87828,3474.3,3473.2,2.29726114]
[1721306934881,2.87828,3474.3,3473.2,2.2534]
[1721306935127,2.87828,3474.3,3473.3,0.0438322]
[1721306935481,7.01113599,3474.6,3473.3,2.3559]
[1721306935675,10.28,3474.7,3472.6,2.10065493]
[1721306935676,7.28,3474.7,3473.5,2.3559]
[1721306935918,1.952,3475.2,3473.7,2.4829]
[1721306935919,1.20310599,3475.1,3473.7,2.4829]
[1721306936098,2.87754,3475.2,3473.9,2.4829]
[1721306936289,4.10644402,3475.2,3473.9,2.4829]
[1721306936486,4.10644402,3475.2,3474.1,2.4128]
[1721306936901,2.87761,3475.1,3474.2,0.0434717]
[1721306937275,2.93561978,3475.1,3474.2,0.0434717]
[1721306937704,2.87761,3475.1,3474.2,0.0434717]
[1721306937899,0.9914054,3475.0,3474.2,0.0434717]
[1721306939209,2.87761,3475.1,3474.2,0.0434717]
[1721306939593,5.8075,3475.3,3474.2,0.0434717]
[1721306939801,2.93,3475.3,3474.2,0.0434717]
[1721306940005,2.87754,3475.2,3474.2,0.0434717]
[1721306941619,2.87762,3475.1,3474.2,0.0434717]
[1721306941802,0.868516,3475.0,3474.2,0.0434717]
[1721306943346,5.8075,3475.3,3474.2,0.0434717]
[1721306943646,2.87754,3475.2,3474.2,0.0434717]
[1721306945919,2.93,3475.3,3474.3,2.37465907]
[1721306946118,7.28,3475.7,3474.3,2.3171]
[1721306946428,7.28,3475.7,3474.4,2.4363]
[1721306946429,10.15716,3475.7,3474.4,2.4363]
[1721306947310,10.21,3475.7,3474.5,2.4513]
[1721306947623,7.28,3475.7,3474.5,2.49435667]
[1721306948201,3.0277507,3475.8,3474.5,2.49435667]
[1721306948402,0.1507207,3475.8,3474.5,2.49435667]
[1721306948735,0.1507207,3475.8,3474.9,2.3888]
[1721306948940,0.1507207,3475.8,3474.9,2.87777]
[1721306949108,0.1507207,3475.8,3475.0,2.43165806]
[1721306949494,0.1507207,3475.8,3475.0,2.92053806]
[1721306949730,0.1507207,3475.8,3475.1,2.3865]
[1721306949936,0.1507207,3475.8,3475.0,0.04285806]
[1721306949937,0.1507207,3475.8,3475.5,2.4608]
[1721306950142,0.1507207,3475.8,3475.5,5.33808]
[1721306950322,0.1507207,3475.8,3475.7,2.4608]
[1721306950830,0.1507207,3475.8,3475.7,5.38050969]
[1721306951733,0.1507207,3475.8,3475.7,8.06831969]
[1721306951947,0.1507207,3475.8,3475.7,11.06831969]
[1721306952435,0.38677791,3476.7,3476.5,2.4026]
[1721306952436,0.03677791,3476.7,3476.5,2.4026]
[1721306953028,0.03677791,3476.7,3476.6,0.09963973]
[1721306953745,0.03677791,3476.7,3476.6,8.21016169]
[1721306954069,0.03677791,3476.7,3476.6,5.33379169]
[1721306954218,0.03677791,3476.7,3476.6,2.45742169]
[1721306955136,0.03677791,3476.7,3476.6,5.33379169]
[1721306955356,0.03677791,3476.7,3476.6,8.26767213]
[1721306955543,0.03677791,3476.7,3476.6,11.26767213]
[1721306955701,3.17552924,3478.4,3476.6,11.26767213]
[1721306955702,0.30062924,3478.4,3476.9,3.037]
[1721306955907,0.1507207,3479.3,3477.9,2.87526]
[1721306956106,0.1507207,3479.3,3477.8,2.2931]
[1721306956107,3.64482075,3479.3,3477.8,5.16841]
[1721306956307,0.77068075,3479.3,3478.0,2.91620769]
[1721306956507,0.77068075,3479.3,3478.1,2.2931]
[1721306956508,0.1507207,3479.3,3478.1,2.2931]
[1721306956720,0.1507207,3479.3,3478.1,5.20903514]
[1721306956983,0.1507207,3479.3,3478.3,2.3162]
[1721306957454,0.1507207,3479.3,3478.4,0.04072856]
[1721306960584,0.1507207,3479.3,3478.4,2.91554856]
[1721306960793,0.1507207,3479.3,3478.4,0.04072856]
[1721306963680,0.74058477,3479.3,3478.4,0.04072856]
[1721306965002,0.1507207,3479.3,3478.4,0.04072856]
[1721306965205,0.1507207,3479.3,3478.4,0.09821082]
[1721306965384,0.1507207,3479.3,3478.5,2.87479]
[1721306965886,0.1507207,3479.3,3478.6,0.04009978]
[1721306966817,0.1507207,3479.3,3478.6,2.91479978]
[1721306968359,2.87491454,3480.0,3478.7,5.24377]
[1721306968360,0.00134454,3480.0,3478.7,5.24377]
[1721306968690,0.00134454,3480.0,3479.1,2.87427]
[1721306969094,0.00134454,3480.0,3479.2,0.03977704]
[1721306969440,0.00134454,3480.0,3478.9,2.87442]
[1721306969604,0.00134454,3480.0,3479.3,0.03974819]
[1721306969820,0.00134454,3480.0,3478.9,2.87442]
[1721306969988,0.00134454,3480.0,3478.6,1.952]
[1721306969989,0.00134454,3480.0,3479.4,2.41051935]
[1721306970194,0.00134454,3480.0,3479.4,2.3708]
[1721306970513,0.00134454,3480.0,3479.5,0.03969051]
[1721306970688,0.00134454,3480.0,3479.4,2.3708]
[1721306971039,0.00134454,3480.0,3479.6,0.0396118]
[1721306971194,0.00134454,3480.0,3479.4,2.3708]
[1721306971195,0.00134454,3480.0,3479.5,0.03964064]
[1721306971395,0.00134454,3480.0,3479.7,0.03958297]
[1721306971596,2.87381,3479.7,3479.6,0.0396118]
[1721306971834,2.87399,3479.5,3478.3,9.7559]
[1721306972009,2.87399,3479.5,3478.3,2.4359]
[1721306972643,2.87407,3479.4,3478.3,2.4359]
[1721306972821,0.57615299,3480.0,3477.8,2.4359]
[1721306972822,2.87438,3479.0,3477.8,2.4359]
[1721306973413,2.87429,3479.2,3477.8,5.36874125]
[1721306973645,2.87429,3479.2,3477.8,2.4359]
[1721306973968,2.87320547,3478.8,3477.8,2.4359]
[1721306974239,0.57476555,3478.7,3477.8,2.4359]
[1721306974433,2.87320547,3478.8,3477.8,2.4359]
[1721306974644,2.87464,3478.7,3477.8,2.4359]
[1721306974829,2.87486,3478.5,3477.2,2.2512]
[1721306975013,2.87464,3478.7,3477.2,5.12706]
[1721306975634,4.2498,3479.3,3477.3,3.0]
[1721306975635,2.87472,3478.6,3477.3,3.0]
[1721306975845,2.8748,3478.5,3477.3,3.0]
[1721306975999,2.87499,3478.3,3477.2,2.2512]
[1721306976348,2.87506,3478.2,3477.2,2.2512]
[1721306977797,2.87513,3478.1,3477.2,2.2512]
[1721306978008,2.8753,3477.9,3476.7,2.2656]
[1721306978412,2.87538,3477.8,3476.7,2.2656]
[1721306978798,2.87555,3477.6,3476.7,2.2656]
[1721306979132,0.287513,3478.1,3476.7,2.2656]
[1721306979133,2.87523,3478.0,3476.7,2.2656]
[1721306979331,2.87529,3477.9,3476.7,2.2656]
[1721306979562,0.287513,3478.1,3476.7,2.2656]
[1721306979563,3.162703,3478.1,3476.7,2.2656]
[1721306979864,2.87502,3478.3,3476.8,0.05750763]
[1721306980064,2.87502,3478.3,3476.8,2.8762]
[1721306980270,2.87502,3478.3,3476.8,2.91570691]
[1721306980558,2.87513,3478.1,3476.8,2.91570691]
[1721306980771,2.87513,3478.1,3476.8,0.03950691]
[1721306980913,2.87522,3478.0,3476.8,0.03950691]
[1721306981439,2.87536,3477.9,3476.8,0.03950691]
[1721306981811,2.87522,3478.0,3476.8,0.03950691]
[1721306981812,2.87538,3477.8,3476.8,0.03950691]
[1721306982462,2.87522,3478.0,3476.8,0.03950691]
[1721306982616,2.87494,3478.4,3476.8,2.97319745]
[1721306982966,2.87497,3478.3,3476.8,2.97319745]
[1721306983318,2.87505,3478.2,3476.8,2.97319745]
[1721306983554,2.87505,3478.2,3476.8,2.91568691]
[1721306984111,2.87513,3478.1,3476.8,0.03950691]
[1721306984317,2.87538,3477.8,3476.8,0.03950691]
[1721306985132,2.87546,3477.7,3476.8,0.03950691]
[1721306985535,2.87521,3478.0,3476.8,0.03950691]
[1721306986372,2.87507,3478.2,3476.9,0.05750919]
[1721306986576,2.87489,3478.4,3476.9,2.93361919]